bitfinex-derivatives/quotes_ETHF0:USTF0_20251012
["timestamp","ask_amount","ask_price","bid_price","bid_amount"]
[1760286266060,0.44187,4071.1,4070.9,0.44188]
[1760286266256,6.37974533,4071.2,4070.4,6.6575]
[1760286266453,3.2078,4070.7,4070.4,3.4497]
[1760286266652,3.61169,4071.0,4070.8,0.4419]
[1760286266848,0.44199,4070.0,4069.8,0.00272566]
[1760286267055,0.44202,4069.8,4069.2,3.2078]
[1760286267354,3.1698,4069.6,4069.2,3.2078]
[1760286267551,3.1698,4069.6,4069.4,0.44205]
[1760286267860,3.1698,4069.3,4069.2,3.2078]
[1760286268153,0.44207,4069.3,4069.2,0.00188347]
[1760286268348,3.90454051,4069.3,4069.2,0.00188347]
[1760286268548,7.07434051,4069.3,4069.2,0.00188347]
[1760286269050,7.07434051,4069.3,4067.6,0.44224]
[1760286269051,3.1698,4068.7,4067.6,0.44224]
[1760286269250,3.1698,4067.8,4067.5,0.44225]
[1760286269553,0.44226,4067.6,4067.0,3.2078]
[1760286269953,3.1698,4067.6,4067.4,0.44227]
[1760286270159,3.17259247,4067.6,4067.4,0.44227]
[1760286270360,0.00279247,4067.6,4067.0,0.00213932]
[1760286270753,0.00279247,4067.6,4067.4,0.44226]
[1760286270951,0.00279247,4067.6,4067.5,3.4497]
[1760286273257,0.4423,4067.1,4067.0,0.00213932]
[1760286273462,0.44228,4067.3,4067.0,0.44444932]
[1760286273656,3.90738,4067.3,4067.0,0.44444932]
[1760286273851,3.4651,4067.2,4067.0,0.44444932]
[1760286274258,3.65008,4067.4,4067.2,0.44229]
[1760286275051,0.00279247,4067.6,4067.5,3.2282]
[1760286276367,3.2078,4067.9,4067.8,3.67043]
[1760286276657,0.44214,4068.7,4067.8,3.2282]
[1760286276856,0.44214,4068.7,4068.5,0.44215]
[1760286277054,0.44215,4068.5,4068.3,0.44217]
[1760286277361,0.4422,4068.1,4067.2,0.44228]
[1760286277561,3.2078,4068.2,4067.1,3.2282]
[1760286277753,3.2078,4068.2,4068.1,3.2282]
[1760286277958,0.44217,4068.4,4068.1,3.67039]
[1760286278151,3.2078,4068.2,4068.1,3.2282]
[1760286279254,0.00186582,4068.5,4068.4,0.44216]
[1760286279461,0.00186582,4068.5,4068.4,3.67036]
[1760286279959,0.00186582,4068.5,4068.4,4.95946]
[1760286280158,3.4651,4068.4,4067.8,3.2282]
[1760286280355,0.44223,4067.8,4067.4,3.2282]
[1760286280557,3.2078,4068.0,4067.1,3.2282]
[1760286280558,0.44225,4067.7,4067.1,3.2282]
[1760286280757,3.2078,4068.0,4067.8,3.2282]
[1760286280959,3.2078,4068.0,4067.3,3.2282]
[1760286281263,0.44225,4067.7,4067.1,3.6705]
[1760286281563,0.44225,4067.7,4067.0,4.49903932]
[1760286281564,3.2078,4068.0,4067.2,3.2282]
[1760286281753,3.2078,4068.0,4067.6,3.2282]
[1760286281957,3.2078,4068.0,4067.9,3.2282]
[1760286282261,0.44218,4068.3,4068.1,0.44219]
[1760286282657,0.44219,4068.2,4067.9,3.67041]
[1760286282859,3.2078,4068.0,4067.7,0.44223]
[1760286283053,3.65001,4068.0,4067.7,0.44224]
[1760286283251,0.44222,4067.9,4067.6,0.44224]
[1760286283456,0.44223,4067.8,4067.3,3.2282]
[1760286283657,0.00186582,4068.5,4068.4,3.78666]
[1760286284462,3.4306,4069.8,4069.2,0.44208]
[1760286284463,3.2078,4069.3,4069.2,0.44208]
[1760286284658,3.2078,4069.3,4069.2,3.78658]
[1760286284963,3.2078,4069.3,4069.2,0.44208]
[1760286285363,3.20989769,4069.3,4069.2,0.44208]
[1760286286264,3.20989769,4069.3,4069.2,3.78658]
[1760286286662,3.20989769,4069.3,4068.8,1.1053]
[1760286286663,3.20989769,4069.3,4068.6,3.3445]
[1760286286863,3.20989769,4069.3,4069.2,3.3445]
[1760286287063,0.00209769,4069.3,4069.2,3.3445]
[1760286287272,3.65197769,4069.3,4069.1,0.44208]
[1760286287470,3.20989769,4069.3,4069.2,3.3445]
[1760286287972,0.00209769,4069.3,4069.2,3.3445]
[1760286288671,0.00209769,4069.3,4068.5,1.10539]
[1760286288672,0.00209769,4069.3,4068.6,3.3445]
[1760286288861,0.01209769,4069.3,4069.1,0.44208]
[1760286289063,0.01209769,4069.3,4069.1,3.78658]
[1760286289275,3.2078,4069.2,4069.1,3.78658]
[1760286289469,0.01209769,4069.3,4069.1,3.78658]
[1760286289968,0.44211,4069.0,4068.4,3.3445]
[1760286290167,0.44211,4068.9,4068.3,3.2078]
[1760286290366,0.44212,4068.8,4068.3,3.2078]
[1760286290572,0.44212,4068.8,4068.6,3.78664]
[1760286291572,3.2078,4069.2,4069.1,3.3445]
[1760286291772,0.01209769,4069.3,4069.2,3.3445]
[1760286293075,0.01209769,4069.3,4069.0,0.44209]
[1760286293076,0.44208,4069.2,4069.0,0.44209]
[1760286293275,0.01209769,4069.3,4069.1,0.44208]
[1760286293672,3.2078,4069.2,4069.1,0.44208]
[1760286293871,3.2078,4069.2,4068.6,0.44214]
[1760286294075,3.2078,4069.2,4068.3,6.5523]
[1760286294076,0.44212,4068.9,4068.7,0.44213]
[1760286294674,0.44212,4068.9,4068.7,3.78663]
[1760286294874,0.44212,4068.8,4068.7,3.3445]
[1760286295067,0.44212,4068.8,4068.7,3.78663]
[1760286295680,0.44211,4069.0,4068.4,3.3445]
[1760286295973,0.45416769,4069.3,4069.2,3.78658]
[1760286296174,0.01209769,4069.3,4069.2,3.78658]
[1760286296374,0.45416769,4069.3,4069.2,3.3445]
[1760286296677,0.01209769,4069.3,4068.6,3.3445]
[1760286296975,0.01209769,4069.3,4068.9,3.3445]
[1760286296976,3.2078,4069.1,4068.9,3.3445]
[1760286297366,0.44212,4068.9,4068.7,0.44213]
[1760286297579,0.44212,4068.9,4068.8,0.44212]
[1760286297977,3.4306,4068.3,4068.2,2.11366957]
[1760286298171,0.44223,4067.8,4067.2,6.5523]
[1760286298369,0.44222,4067.9,4067.2,7.65802]
[1760286298569,0.44223,4067.8,4067.7,3.3445]
[1760286298979,2.21057,4068.9,4067.2,3.2078]
[1760286298980,3.2078,4068.8,4068.1,0.44219]
[1760286299176,1.10529,4068.9,4067.5,1.2786]
[1760286299177,0.4422,4068.2,4067.6,3.3445]
[1760286299371,0.4422,4068.2,4068.0,3.78671]
[1760286299572,3.2078,4068.3,4068.1,0.44219]
[1760286299878,0.44219,4068.2,4068.0,2.11366957]
[1760286300078,3.2078,4068.3,4067.8,2.11366957]
[1760286300376,0.4422,4068.1,4067.8,3.3445]
[1760286300576,3.2078,4068.3,4067.7,2.11366957]
[1760286300775,3.2078,4068.3,4067.5,0.44225]
[1760286300776,0.44225,4067.6,4067.5,2.11366957]
[1760286301272,3.87285,4067.6,4067.5,2.11366957]
[1760286301683,3.87285,4067.6,4067.4,5.32146957]
[1760286301971,0.44225,4067.6,4067.4,5.32146957]
[1760286302167,3.4306,4067.5,4067.4,2.11366957]
[1760286302371,3.4306,4067.3,4067.2,1.71032213]
[1760286302572,1.54796,4067.4,4067.0,0.00213932]
[1760286302573,3.3645,4067.1,4067.0,0.00213932]
[1760286302773,0.44245,4065.8,4065.7,6.23536805]
[1760286302976,0.44245,4065.8,4065.7,3.2078]
[1760286303184,3.2078,4066.2,4065.7,3.2078]
[1760286303374,0.44242,4066.1,4065.7,3.65025]
[1760286303573,0.44243,4066.0,4065.8,3.2181]
[1760286303774,0.00220196,4066.0,4065.8,3.22091327]
[1760286303970,0.44462196,4066.0,4065.9,3.2181]
[1760286304181,3.80912196,4066.0,4065.8,0.00281327]
[1760286304388,0.44462196,4066.0,4065.8,3.22091327]
[1760286304777,0.44462196,4066.0,4065.8,0.00281327]
[1760286305082,3.3645,4065.9,4065.8,0.00281327]
[1760286305278,6.17908955,4065.9,4065.8,0.00281327]
[1760286305986,6.17908955,4065.9,4065.0,3.2078]
[1760286305987,3.80702,4065.1,4065.0,3.2078]
[1760286306484,0.44261,4064.3,4064.1,3.02756805]
[1760286306683,0.44262,4064.2,4064.0,3.2181]
[1760286307081,0.44262,4064.2,4064.1,3.2181]
[1760286307380,3.2078,4064.6,4064.1,3.2181]
[1760286307584,3.2078,4065.4,4065.3,3.2181]
[1760286307989,0.00220196,4066.0,4065.3,3.66059]
[1760286308287,3.2078,4065.7,4065.4,0.44248]
[1760286308591,0.00220196,4066.0,4065.2,3.2181]
[1760286308592,0.44244,4065.8,4065.2,3.2181]
[1760286308784,0.00220196,4066.0,4065.8,3.2181]
[1760286308985,0.44243,4065.9,4065.8,3.2181]
[1760286309381,0.00220196,4066.0,4065.9,3.2181]
[1760286309595,10.317,4067.4,4066.0,2.36345]
[1760286309596,3.2078,4066.7,4066.0,2.36345]
[1760286309892,3.2078,4066.7,4066.5,0.44235]
[1760286310093,3.2078,4066.7,4066.6,3.2181]
[1760286310492,0.4423,4067.2,4067.0,0.44231]
[1760286310685,0.4423,4067.2,4067.1,3.6604]
[1760286310686,0.00182394,4067.2,4067.1,3.6604]
[1760286310894,10.317,4067.4,4067.3,3.66038]
[1760286311294,10.317,4067.4,4067.3,3.2181]
[1760286311494,10.317,4067.4,4067.0,1.2594195]
[1760286311495,10.317,4067.4,4067.2,0.44228]
[1760286311802,0.44229,4067.2,4067.1,3.2181]
[1760286312189,0.44229,4067.2,4067.0,0.0020195]
[1760286312190,10.31879747,4067.4,4067.3,0.44228]
[1760286312400,10.31879747,4067.4,4067.3,3.66038]
[1760286313092,3.2078,4068.0,4067.9,3.66031]
[1760286313291,3.3645,4069.1,4068.6,0.44213]
[1760286313591,0.01,4069.3,4068.0,1.2574]
[1760286313592,0.01,4069.3,4068.9,0.4421]
[1760286313791,0.01,4069.3,4068.3,3.2078]
[1760286313792,0.01,4069.3,4069.2,0.44207]
[1760286314002,3.2078,4069.7,4069.6,3.2181]
[1760286314201,3.2078,4070.8,4070.0,0.44198]
[1760286314496,0.00217178,4070.2,4070.1,3.2181]
[1760286314697,3.2078,4071.3,4070.1,3.2181]
[1760286314888,3.2078,4071.3,4071.2,3.2181]
[1760286315091,3.2078,4071.3,4071.0,0.44187]
[1760286315292,3.2078,4071.3,4071.1,3.2181]
[1760286315698,1.10429,4072.5,4070.2,2.79240561]
[1760286315699,3.2078,4071.9,4071.5,3.2181]
[1760286315894,3.2078,4071.9,4071.8,3.2181]
[1760286315895,3.21014275,4071.9,4071.8,3.2181]
[1760286316198,3.21014275,4071.9,4071.8,3.65989]
[1760286316401,0.00234275,4071.9,4071.8,3.2181]
[1760286317392,10.317,4072.8,4071.9,3.2181]
[1760286317697,0.44163,4073.3,4072.9,3.2181]
[1760286317901,3.3645,4073.6,4072.9,3.2181]
[1760286318200,2.5824041,4073.2,4072.3,3.2078]
[1760286318395,2.5824041,4073.2,4072.3,0.00264924]
[1760286318396,4.5279,4072.8,4072.3,0.00264924]
[1760286318596,3.80622,4072.4,4072.3,0.00264924]
[1760286319097,0.44185,4071.3,4070.7,0.4419]
[1760286319292,2.42447,4072.2,4070.5,3.2078]
[1760286319293,3.2078,4071.2,4070.5,3.2078]
[1760286319491,5.79697399,4071.2,4070.5,3.2078]
[1760286319695,3.3645,4070.5,4069.3,3.2181]
[1760286319899,3.2078,4070.6,4069.9,3.2181]
[1760286320095,0.44198,4070.0,4069.8,3.2078]
[1760286320305,0.44204,4069.6,4069.2,0.00185123]
[1760286320496,3.2078,4069.6,4069.2,0.44391123]
[1760286320701,3.2078,4069.7,4069.2,0.44392123]
[1760286320903,3.2078,4069.7,4069.4,3.2181]
[1760286321404,3.2078,4069.7,4069.5,3.2181]
[1760286321606,3.2078,4069.7,4069.6,3.2181]
[1760286321803,0.00231691,4070.0,4069.3,3.2181]
[1760286322500,6.31134807,4069.9,4069.4,3.2181]
[1760286322899,3.2078,4069.9,4069.3,3.2181]
[1760286323508,3.2078,4069.9,4069.7,0.44201]
[1760286323703,3.2078,4069.9,4069.7,3.66011]
[1760286324315,3.6498,4069.9,4069.5,0.44204]
[1760286324609,0.44203,4069.7,4069.3,0.44206]
[1760286324810,3.3645,4069.8,4069.5,0.44204]
[1760286325001,3.64981,4069.9,4069.5,0.44204]
[1760286325203,3.3645,4069.8,4069.5,0.44204]
[1760286325509,3.3645,4069.8,4069.6,0.44202]
[1760286325708,3.3645,4069.8,4069.2,0.00185123]
[1760286325709,0.44207,4069.3,4069.2,0.00185123]
[1760286326007,9.25334329,4069.3,4069.2,0.00185123]
[1760286326405,0.44218,4068.3,4067.9,0.44221]
[1760286326606,0.44218,4068.3,4067.8,3.2078]
[1760286326607,3.3645,4068.2,4068.0,0.4422]
[1760286326908,3.3645,4068.1,4067.2,3.2181]
[1760286327209,3.3645,4068.2,4067.9,0.44221]
[1760286327409,3.2078,4068.3,4068.1,0.44219]
[1760286327805,3.2078,4068.8,4068.7,0.44213]
[1760286328107,3.2078,4069.5,4069.4,0.44205]
[1760286328309,3.2078,4069.5,4069.4,3.66015]
[1760286328505,0.00231691,4070.0,4069.9,3.6601]
[1760286331221,3.2078,4071.1,4070.9,3.65998]
[1760286331516,3.2078,4071.1,4071.0,3.2181]
[1760286331710,3.2078,4071.1,4071.0,4.4755]
[1760286331911,13.5208,4071.7,4071.6,0.44182]
[1760286332112,10.313,4071.7,4071.6,3.65992]
[1760286332313,10.31472499,4071.7,4071.6,8.12783501]
[1760286332516,0.44165,4073.2,4072.7,3.2033]
[1760286332713,4.5935,4072.8,4072.2,3.2078]
[1760286332912,3.6834,4071.8,4071.6,0.00271501]
[1760286333111,0.4418,4071.8,4071.6,0.00271501]
[1760286333516,0.44464283,4071.8,4071.6,0.00271501]
[1760286333713,0.00284283,4071.8,4071.6,3.20601501]
[1760286333916,0.00284283,4071.8,4071.7,3.64511]
[1760286334213,0.44464283,4071.8,4071.7,3.2033]
[1760286334614,3.65244283,4071.8,4071.7,3.2033]
[1760286334810,0.00284283,4071.8,4071.7,3.6451]
[1760286335008,3.21064283,4071.8,4071.7,3.2033]
[1760286335210,3.21064283,4071.8,4071.6,0.00271501]
[1760286335415,0.00284283,4071.8,4071.6,0.00271501]
[1760286335613,3.65243283,4071.8,4071.6,3.20601501]
[1760286336018,3.21064283,4071.8,4071.6,3.20601501]
[1760286336319,3.65243283,4071.8,4071.6,0.00271501]
[1760286337218,3.2416,4071.7,4071.6,0.00271501]
[1760286338319,3.2078,4071.7,4071.6,0.00271501]
[1760286338716,0.00284283,4071.8,4071.7,3.6451]
[1760286339017,0.00284283,4071.8,4071.7,3.2033]
[1760286339817,3.6834,4071.7,4071.6,0.00271501]
[1760286340021,3.2416,4071.4,4070.2,3.2033]
[1760286340220,3.2416,4071.4,4070.1,4.89529561]
[1760286340221,3.2078,4071.0,4070.5,3.64522]
[1760286340520,3.2078,4071.0,4070.5,0.44192]
[1760286340721,3.2078,4071.0,4070.5,3.64522]
[1760286340918,0.4419,4070.8,4070.5,0.00284737]
[1760286341123,0.44189,4070.9,4070.5,0.00284737]
[1760286341626,3.2416,4070.8,4070.5,0.00284737]
[1760286341826,3.2416,4070.9,4070.5,0.00284737]
[1760286342024,3.2416,4070.7,4070.5,0.00284737]
[1760286342424,2.55635993,4070.9,4070.8,0.44189]
[1760286342628,0.00284283,4071.8,4071.7,0.4418]
[1760286342825,0.00284283,4071.8,4070.8,1.68975035]
[1760286342826,3.2416,4071.5,4070.8,1.68975035]
[1760286343126,3.2416,4071.5,4070.6,3.2078]
[1760286343127,3.2078,4071.4,4071.1,0.44186]
[1760286343331,2.72883968,4071.8,4071.3,0.44183]
[1760286343332,0.00284283,4071.8,4071.3,0.44183]
[1760286343624,0.00284283,4071.8,4071.0,0.44187]
[1760286343625,0.44183,4071.4,4071.0,0.44187]
[1760286343824,0.44184,4071.4,4070.9,0.44188]
[1760286344019,3.2078,4071.0,4070.5,1.69259772]
[1760286344222,0.44185,4071.2,4070.6,3.4014]
[1760286344424,3.2078,4071.5,4070.6,1.1048]
[1760286344627,0.00284283,4071.8,4070.5,0.00284737]
[1760286344628,3.4077,4071.3,4070.5,0.00284737]
[1760286344830,3.84954,4071.3,4070.8,0.44189]
[1760286345024,0.44186,4071.2,4070.8,0.44189]
[1760286345224,0.44186,4071.2,4070.5,3.40424737]
[1760286345225,3.64964,4071.4,4071.0,0.44187]
[1760286345427,0.00284283,4071.8,4070.9,1.10472]
[1760286345625,3.4077,4071.7,4071.4,0.44183]
[1760286345830,0.00284283,4071.8,4071.0,1.68975035]
[1760286346132,0.00284283,4071.8,4071.6,0.44181]
[1760286346726,3.4077,4071.7,4071.5,0.44181]
[1760286346927,6.10032253,4071.7,4071.1,0.44186]
[1760286347122,0.00284283,4071.8,4071.1,0.44186]
[1760286347123,0.00284283,4071.8,4071.7,0.4418]
[1760286347321,0.00284283,4071.8,4071.1,3.4014]
[1760286347322,0.00284283,4071.8,4071.5,0.44181]
[1760286347721,3.41054283,4071.8,4071.6,0.44181]
[1760286348128,3.41054283,4071.8,4071.1,3.4014]
[1760286348434,0.00284283,4071.8,4071.6,0.4418]
[1760286348729,0.00284283,4071.8,4070.7,3.2078]
[1760286348730,3.4077,4071.4,4070.7,1.68975035]
[1760286348925,3.4077,4070.9,4070.5,0.00284737]
[1760286349328,1.3734,4071.5,4070.5,0.00284737]
[1760286349329,2.76316565,4071.4,4071.2,3.84325]
[1760286349524,2.76316565,4071.4,4071.2,0.44185]
[1760286349735,6.6155,4071.5,4071.3,0.44184]
[1760286350035,3.2078,4071.5,4071.2,0.44185]
[1760286350232,3.2078,4071.5,4071.4,3.4014]
[1760286351233,3.2078,4071.5,4071.3,0.44184]
[1760286351426,3.2078,4071.5,4070.9,0.44188]
[1760286351427,3.4077,4071.3,4070.9,0.44188]
[1760286351628,3.4077,4071.3,4070.9,3.4014]
[1760286351822,0.44188,4071.0,4070.8,1.68975035]
[1760286352026,3.4077,4070.8,4070.5,0.44477737]
[1760286352229,2.60092749,4071.4,4071.3,0.44184]
[1760286352538,3.84944,4072.3,4071.7,0.4418]
[1760286352735,3.84944,4072.3,4071.7,3.8432]
[1760286353434,3.2078,4072.0,4071.7,3.8432]
[1760286353734,3.2078,4072.0,4071.7,0.4418]
[1760286353938,3.2078,4072.0,4071.7,3.8432]
[1760286354433,0.44464283,4071.8,4071.4,0.44184]
[1760286354638,3.4077,4071.7,4071.0,1.68975035]
[1760286354836,0.44183,4071.5,4071.1,0.44186]
[1760286355035,3.84954,4071.4,4070.9,0.44188]
[1760286355233,3.84954,4071.4,4070.5,1.69259772]
[1760286355234,3.4077,4071.2,4070.5,1.69259772]
[1760286355430,3.2078,4071.3,4070.5,0.00284737]
[1760286355635,3.4077,4070.6,4070.5,0.00284737]
[1760286356038,2.74768283,4070.6,4070.5,0.00284737]
[1760286356240,3.2078,4070.8,4070.5,0.00284737]
[1760286356742,1.10736283,4071.8,4071.5,0.44182]
[1760286356743,3.2078,4071.7,4071.5,0.44182]
[1760286356938,3.2078,4071.7,4071.3,0.44184]
[1760286357144,3.4077,4071.4,4071.1,0.44187]
[1760286357339,1.81523,4071.5,4071.1,0.44186]
[1760286357541,3.2078,4071.2,4071.0,2.13163035]
[1760286357736,3.21064283,4071.8,4071.1,5.09115035]
[1760286357941,3.21064283,4071.8,4071.2,0.44186]
[1760286357942,3.2078,4071.3,4071.2,0.44186]
[1760286358142,6.6155,4071.3,4071.2,0.44186]
[1760286358343,3.4077,4071.3,4071.2,1.68975035]
[1760286358543,3.4077,4071.3,4070.8,2.10852105]
[1760286358739,3.4077,4071.3,4071.2,1.70344096]
[1760286358740,6.6155,4071.3,4071.2,1.70344096]
[1760286359242,6.6155,4071.3,4070.7,2.10852105]
[1760286359243,3.4077,4071.1,4070.9,0.44189]
[1760286359638,3.4077,4071.1,4071.0,1.70362029]
[1760286359840,3.4077,4071.1,4070.8,2.55042105]
[1760286359841,0.44184,4071.4,4070.7,2.10852105]
[1760286360046,6.6155,4071.3,4071.2,1.70338854]
[1760286360543,6.6155,4071.3,4071.0,1.70338854]
[1760286360544,3.84956,4071.2,4071.0,1.70338854]
[1760286360843,0.4419,4070.8,4070.6,1.70338854]
[1760286361038,7.0162889,4071.1,4070.5,0.00284737]
[1760286361039,3.2078,4070.7,4070.5,0.00284737]
[1760286361238,2.73976646,4071.2,4071.1,0.44187]
[1760286361542,6.14746646,4071.7,4071.1,2.13009394]
[1760286361749,3.4077,4071.6,4071.5,1.70412306]
[1760286362043,3.4077,4071.3,4071.2,1.70412306]
[1760286362245,6.6155,4071.3,4071.2,1.70412306]
[1760286362633,3.145,4071.2,4071.0,1.70412306]
[1760286363035,5.90354764,4071.1,4071.0,1.70412306]
[1760286363239,3.5869,4070.9,4070.6,2.13009394]
[1760286363441,3.145,4070.7,4070.5,2.13294131]
[1760286363645,3.64971,4070.8,4070.5,0.00284737]
[1760286363646,3.145,4070.6,4070.5,0.00284737]
[1760286363842,3.145,4071.2,4071.0,0.44186]
[1760286364036,3.145,4071.4,4071.0,1.70396781]
[1760286364240,2.72950341,4071.4,4071.3,2.14580781]
[1760286364541,3.14784283,4071.8,4070.8,4.31253]
[1760286364542,3.145,4071.5,4071.1,2.13009394]
[1760286364745,0.00284283,4071.8,4071.7,0.4418]
[1760286364937,2.83e-06,4071.8,4071.7,3.8422]
[1760286365135,6.3528,4073.2,4072.3,3.4004]
[1760286365340,6.3528,4073.2,4071.8,1.10447]
[1760286365341,3.145,4072.6,4072.5,1.7005393]
[1760286365539,3.145,4072.0,4071.9,2.12567413]
[1760286365749,3.145,4071.9,4071.8,0.44179]
[1760286365943,3.2078,4072.0,4071.7,0.44179]
[1760286366147,3.145,4071.9,4071.7,0.44179]
[1760286366343,3.2106681,4072.0,4071.4,2.12567413]
[1760286366546,3.145,4071.4,4071.2,2.12567413]
[1760286366744,3.2078,4071.5,4071.4,0.44183]
[1760286367149,3.145,4071.9,4071.1,5.52607413]
[1760286367349,4.582,4071.6,4071.2,2.12567413]
[1760286367541,3.145,4071.4,4071.3,2.12567413]
[1760286367743,3.58684,4071.3,4071.2,2.12567413]
[1760286367947,1.81607,4071.0,4070.9,2.12567413]
[1760286368151,4.582,4071.0,4070.7,0.4419]
[1760286368447,2.8287087,4071.5,4071.4,0.44183]
[1760286368448,6.3528,4071.5,4071.4,0.44183]
[1760286368640,3.2106681,4072.0,4071.9,3.4004]
[1760286369050,3.2106681,4072.0,4071.9,5.52716213]
[1760286369454,3.2106681,4072.0,4071.8,2.12663525]
[1760286369748,3.145,4074.4,4072.6,3.4004]
[1760286369950,3.145,4074.4,4073.6,3.2078]
[1760286370147,1.3742,4074.0,4073.6,5.33250267]
[1760286370342,3.145,4073.9,4073.5,2.12470267]
[1760286370653,3.145,4073.9,4073.1,2.12470267]
[1760286370654,1.3742,4073.5,4073.1,2.12470267]
[1760286370853,1.3742,4073.5,4073.1,0.44370507]
[1760286371053,0.44164,4073.2,4073.1,0.00206507]
[1760286371357,3.145,4072.7,4072.6,2.12470267]
[1760286371553,3.145,4072.7,4072.2,2.12470267]
[1760286371852,3.145,4072.8,4072.4,3.2078]
[1760286372049,3.58663,4073.3,4072.7,0.44168]
[1760286372444,1.3742,4073.5,4072.5,2.56641267]
[1760286372445,2.64064103,4073.2,4072.5,2.56641267]
[1760286372644,3.145,4073.1,4072.8,0.44167]
[1760286372849,3.145,4073.4,4073.0,3.2078]
[1760286373151,3.145,4073.4,4073.3,0.44162]
[1760286373354,1.3742,4073.5,4073.1,0.44164]
[1760286373759,3.58667,4072.9,4072.8,2.12470267]
[1760286373950,3.58671,4072.5,4072.4,0.00177351]
[1760286374252,0.44178,4071.9,4071.8,3.02756805]
[1760286374454,0.44178,4071.9,4070.4,8.45288978]
[1760286374455,0.44181,4071.6,4071.1,0.44186]
[1760286374650,3.145,4071.6,4070.9,6.23536805]
[1760286374959,3.2078,4071.7,4070.2,4.23866913]
[1760286374960,4.96107,4071.0,4070.4,6.67730805]
[1760286375145,3.145,4070.9,4070.7,0.4419]
[1760286375455,3.145,4070.9,4070.7,0.44365201]
[1760286375456,3.14731472,4070.9,4070.7,0.44365201]
[1760286376353,0.00231472,4070.9,4070.7,0.44365201]
[1760286376553,0.00231472,4070.9,4070.8,3.4798]
[1760286377446,3.145,4073.5,4072.6,3.4798]
[1760286377645,3.2078,4073.6,4073.1,1.69714432]
[1760286377956,3.2078,4073.6,4072.8,0.44168]
[1760286377957,0.44163,4073.3,4072.9,1.69714432]
[1760286378158,0.44163,4073.3,4072.7,2.13883432]
[1760286378350,3.145,4073.1,4072.8,0.44167]
[1760286378655,3.145,4073.1,4073.0,0.44166]
[1760286379457,3.145,4073.1,4073.0,2.13880432]
[1760286379659,3.145,4073.1,4073.0,1.69714432]
[1760286380049,0.00231978,4073.3,4073.1,0.44165]
[1760286380249,0.00231978,4073.3,4073.1,2.13682596]
[1760286380451,3.145,4073.2,4073.1,0.44165]
[1760286380855,3.145,4073.2,4073.1,3.64945]
[1760286381161,0.00231978,4073.3,4073.1,5.34462596]
[1760286381361,0.00231978,4073.3,4073.1,3.64945]
[1760286381562,3.145,4073.2,4073.1,3.64945]
[1760286381964,5.7711238,4073.2,4073.1,3.64945]
[1760286382459,3.145,4073.2,4073.1,3.64945]
[1760286382850,2.62216879,4073.2,4073.0,0.44165]
[1760286383057,0.00231978,4073.3,4073.1,0.44164]
[1760286383362,0.00231978,4073.3,4073.2,5.17497596]
[1760286383565,3.145,4075.6,4075.3,0.4414]
[1760286383751,3.145,4075.7,4075.1,3.2078]
[1760286384058,4.582,4075.8,4074.6,3.2078]
[1760286384059,3.145,4075.1,4074.6,3.2078]
[1760286384260,3.58647,4074.7,4074.6,3.2078]
[1760286384460,3.145,4074.5,4073.8,3.2078]
[1760286384659,3.145,4074.5,4073.8,4.90066502]
[1760286384957,2.55769563,4074.4,4073.8,4.90066502]
[1760286385159,3.145,4073.9,4073.8,0.0025313]
[1760286385665,5.80305706,4073.9,4073.8,0.0025313]
[1760286385864,3.145,4073.9,4073.8,3.2103313]
[1760286386062,3.58656,4073.9,4073.8,0.0025313]
[1760286386266,6.17252897,4073.9,4073.8,0.0025313]
[1760286386458,3.145,4073.3,4072.8,4.89813372]
[1760286386659,3.145,4073.3,4072.8,3.2078]
[1760286386860,1.3742,4072.8,4072.4,1.69033372]
[1760286387175,0.44172,4072.4,4072.3,3.2078]
[1760286387458,0.44172,4072.4,4070.7,4.23866913]
[1760286387459,1.81602,4071.6,4071.2,4.89813372]
[1760286387666,3.145,4071.5,4071.2,3.2098767]
[1760286387855,3.145,4071.4,4071.2,3.2098767]
[1760286388061,3.145,4070.9,4070.7,3.2078]
[1760286388265,1.37694081,4071.6,4071.2,1.10955]
[1760286388266,3.38540356,4071.3,4071.2,1.10955]
[1760286388464,3.2078,4073.2,4072.4,0.44171]
[1760286388668,3.2078,4073.2,4072.1,5.34165049]
[1760286388874,1.3742,4072.6,4072.1,4.89990049]
[1760286389177,1.3742,4071.9,4071.8,1.69210049]
[1760286389371,1.3742,4071.9,4071.8,0.00227499]
[1760286389372,1.37669535,4071.9,4071.8,0.00227499]
[1760286389572,1.37669535,4071.9,4071.8,0.44406499]
[1760286389573,0.00249535,4071.9,4071.8,0.44406499]
[1760286389768,1.37669535,4071.9,4071.8,0.00227499]
[1760286390073,0.00249535,4071.9,4071.8,0.00227499]
[1760286390872,4.52169535,4071.9,4071.8,0.00227499]
[1760286391075,7.16672252,4071.9,4071.8,0.00227499]
[1760286391469,3.14749535,4071.9,4071.8,1.69612609]
[1760286391780,3.14749535,4071.9,4071.8,1.69652988]
[1760286391972,0.00249535,4071.9,4071.8,0.00227499]
[1760286392177,3.14749535,4071.9,4071.8,1.69652227]
[1760286392371,3.14749535,4071.9,4071.8,0.00227499]
[1760286393273,3.14749535,4071.9,4071.8,1.69653902]
[1760286393670,5.76573848,4071.9,4071.8,0.00227499]
[1760286393969,5.76573848,4071.9,4071.0,3.2078]
[1760286393970,0.44186,4071.1,4071.0,3.2078]
[1760286394172,0.44186,4071.1,4070.5,1.69426403]
[1760286394173,3.2078,4071.1,4070.5,1.69426403]
[1760286394375,4.7199,4070.4,4070.3,3.2078]
[1760286394777,7.44260928,4070.4,4070.3,3.2078]
[1760286394973,7.44260928,4070.4,4070.3,3.21011191]
[1760286395973,10.65523133,4070.4,4070.3,0.00231191]
[1760286397175,10.65523133,4070.4,4069.1,3.2078]
[1760286397176,1.3563,4069.8,4069.3,1.69426403]
[1760286397473,1.3563,4069.8,4068.6,3.2078]
[1760286397474,3.3636,4069.5,4069.4,0.44206]